lending/lending_fUSD_20240112
["ID","MTS","AMOUNT","RATE_DAILY","PERIOD"]
[311403423,1705077117666,-600.96,0.00025798,2]
[311403424,1705077117676,-500.0,0.00025798,2]
[311403425,1705077117685,-500.0,0.00025798,2]
[311403426,1705077117694,-500.0,0.00025798,2]
[311403427,1705077117705,-500.0,0.00025798,2]
[311403428,1705077117714,-571.62,0.00025798,2]
[311403429,1705077117724,-500.0,0.00025798,2]
[311403430,1705077117733,-500.0,0.00025798,2]
[311403431,1705077117742,-1417.94,0.00025798,2]
[311403432,1705077117752,-500.0,0.00025798,2]
[311403433,1705077117761,-965.53,0.00025798,2]
[311403434,1705077117771,-2036.95,0.00025798,2]
[311403435,1705077117780,-500.0,0.00025798,2]
[311403436,1705077117789,-500.0,0.00025798,2]
[311403437,1705077117799,-500.0,0.00025798,2]
[311403438,1705077117809,-595.49,0.00025798,2]
[311403439,1705077117818,-500.0,0.00025798,2]
[311403440,1705077117828,-2001.96,0.00025798,2]
[311403441,1705077117837,-594.21,0.00025798,2]
[311403442,1705077117847,-683.21,0.00025798,2]
[311403443,1705077117857,-565.97,0.00025798,2]
[311403444,1705077117867,-500.0,0.00025798,2]
[311403445,1705077117876,-511.84,0.00025798,2]
[311403446,1705077117885,-1545.91,0.00025798,2]
[311403447,1705077117895,-1125.76,0.00025798,2]
[311403448,1705077117905,-806.95,0.00025798,2]
[311403449,1705077117914,-1118.05,0.00025798,2]
[311403450,1705077117924,-806.37,0.00025798,2]
[311403451,1705077117933,-4705.31,0.00025798,2]
[311403452,1705077117942,-4838.78,0.00025798,2]
[311403453,1705077117952,-973.61,0.00025798,2]
[311403454,1705077117962,-500.0,0.00025798,2]
[311403455,1705077117971,-3717.14,0.00025798,2]
[311403456,1705077117981,-964.46,0.00025798,2]
[311403457,1705077117990,-500.0,0.00025798,2]
[311403458,1705077117999,-500.0,0.00025798,2]
[311403459,1705077118009,-500.0,0.00025798,2]
[311403460,1705077118018,-628.62,0.00025798,2]
[311403461,1705077118027,-508.58,0.00025798,2]
[311403462,1705077118037,-1093.02,0.00025798,2]
[311403463,1705077118046,-2444.08,0.00025798,2]
[311403464,1705077118055,-1131.66,0.00025798,2]
[311403465,1705077118065,-829.37,0.00025798,2]
[311403466,1705077118074,-1941.71,0.00025798,2]
[311403467,1705077118084,-923.95,0.00025798,2]
[311403468,1705077118093,-500.0,0.00025798,2]
[311403469,1705077118102,-693.03,0.00025798,2]
[311403470,1705077118111,-2777.7,0.00025798,2]
[311403471,1705077118120,-546.11,0.00025798,2]
[311403472,1705077118129,-604.98721076,0.00025798,2]
[311403473,1705077118138,-1599.45,0.00025798,2]
[311403474,1705077118147,-500.0,0.00025798,2]
[311403475,1705077118160,-533.41,0.00025798,2]
[311403476,1705077118169,-500.0,0.00025798,2]
[311403477,1705077118178,-666.05,0.00025798,2]
[311403478,1705077118187,-775.82,0.00025798,2]
[311403479,1705077118197,-1275.61,0.00025798,2]
[311403480,1705077118210,-500.0,0.00025798,2]
[311403481,1705077118219,-723.72,0.00025798,2]
[311403482,1705077118228,-1101.03,0.00025798,2]
[311403483,1705077118238,-500.0,0.00025798,2]
[311403484,1705077118247,-2377.81,0.00025798,2]
[311403485,1705077118256,-1960.6,0.00025798,2]
[311403486,1705077118267,-612.39,0.00025798,2]
[311403487,1705077118277,-500.0,0.00025798,2]
[311403488,1705077118287,-500.0,0.00025798,2]
[311403489,1705077118298,-186.57416703,0.00025798,2]
[311403490,1705077118308,-4932.76,0.00025798,2]
[311403491,1705077118319,-555.03,0.00025798,2]
[311403492,1705077118330,-2035.38,0.00025798,2]
[311403493,1705077118340,-500.0,0.00025798,2]
[311403494,1705077118350,-332.28976882,0.00025798,2]
[311403495,1705077118361,-595.74,0.00025798,2]
[311403496,1705077118372,-500.0,0.00025798,2]
[311403497,1705077118382,-1056.92,0.00025798,2]
[311403498,1705077118392,-541.9,0.00025798,5]
[311403499,1705077118402,-500.0,0.00025798,2]
[311403500,1705077118412,-500.0,0.00025799,2]
[311403501,1705077118422,-500.0,0.00025799,2]
[311403502,1705077118431,-519.46,0.00025799,2]
[311403503,1705077118441,-516.68,0.00025799,2]
[311403504,1705077118453,-1080.77,0.00025799,2]
[311403505,1705077118463,-710.97,0.00025799,2]
[311403506,1705077118474,-1121.79,0.00025799,2]
[311403507,1705077118484,-352.82066709,0.00025799,2]
[311403508,1705077118494,-500.0,0.00025799,2]
[311403509,1705077118504,-500.0,0.00025799,2]
[311403510,1705077118514,-625.58,0.00025799,2]
[311403511,1705077118533,-500.0,0.00025799,2]
[311403512,1705077118551,-500.0,0.00025799,2]
[311403513,1705077118563,-591.96283273,0.00025799,2]
[311403514,1705077118574,-500.0,0.00025799,2]
[311403515,1705077118584,-616.43,0.00025799,2]
[311403516,1705077118595,-719.05,0.00025799,2]
[311403517,1705077118606,-500.0,0.00025799,2]
[311403518,1705077118617,-604.24,0.00025799,2]
[311403519,1705077118632,-158.54991313,0.00025799,2]
[311403520,1705077118641,-790.24,0.00025799,2]
[311403521,1705077118651,-700.63,0.00025799,2]
[311403522,1705077118660,-500.0,0.00025799,2]
[311403523,1705077118670,-1719.73,0.00025799,2]
[311403524,1705077118679,-986.0,0.00025799,2]
[311403525,1705077118689,-711.04,0.00025799,2]
[311403526,1705077118698,-506.08,0.00025799,2]
[311403527,1705077118711,-1746.57,0.00025799,2]
[311403528,1705077118721,-1020.11,0.00025799,2]
[311403529,1705077118730,-777.31,0.00025799,2]
[311403530,1705077118740,-511.02,0.00025799,2]
[311403531,1705077118749,-2304.2,0.00025799,2]
[311403532,1705077118759,-500.0,0.00025799,2]
[311403533,1705077118768,-2513.79,0.00025799,2]
[311403534,1705077118777,-1000.0,0.00025799,2]
[311403535,1705077118786,-708.84,0.00025799,2]
[311403536,1705077118795,-380.51901936,0.00025799,2]
[311403537,1705077118805,-500.0,0.000258,2]
[311403538,1705077118814,-741.19,0.000258,2]
[311403539,1705077118823,-427.65972941,0.000258,2]
[311403540,1705077118832,-666.1,0.000258,2]
[311403541,1705077118842,-500.0,0.000258,2]
[311403542,1705077118851,-500.0,0.000258,2]
[311403543,1705077118860,-500.0,0.000258,2]
[311403544,1705077118870,-330.53875792,0.000258,2]
[311403545,1705077118879,-500.0,0.000258,2]
[311403546,1705077118889,-671.18,0.000258,2]
[311403547,1705077118899,-500.0,0.000258,2]
[311403548,1705077118908,-500.0,0.000258,2]
[311403549,1705077118919,-599.35,0.000258,2]
[311403550,1705077118928,-500.0,0.000258,2]
[311403551,1705077118937,-500.0,0.000258,2]
[311403552,1705077118947,-500.0,0.000258,2]
[311403553,1705077118959,-1194.85,0.000258,2]
[311403554,1705077118969,-500.0,0.000258,2]
[311403555,1705077118979,-835.11,0.000258,2]
[311403556,1705077118988,-500.0,0.000258,2]
[311403557,1705077118998,-500.0,0.000258,2]
[311403558,1705077119007,-910.05,0.000258,2]
[311403559,1705077119017,-500.0,0.000258,2]
[311403560,1705077119026,-772.68,0.000258,2]
[311403561,1705077119036,-500.0,0.000258,2]
[311403562,1705077119045,-216.51402143,0.000258,2]
[311403563,1705077119054,-478.33650821,0.000258,2]
[311403564,1705077119064,-758.57,0.000258,2]
[311403565,1705077119073,-500.0,0.000258,2]
[311403566,1705077119083,-747.06,0.000258,2]
[311403567,1705077119093,-500.0,0.000258,2]
[311403568,1705077119102,-500.0,0.000258,2]
[311403569,1705077119112,-500.0,0.000258,2]
[311403570,1705077119121,-500.0,0.000258,2]
[311403571,1705077119130,-500.0,0.000258,2]
[311403572,1705077119139,-1049.62,0.000258,2]
[311403573,1705077119149,-500.0,0.000258,2]
[311403574,1705077119158,-500.0,0.000258,2]
[311403575,1705077119167,-500.0,0.000258,2]
[311403576,1705077119176,-500.0,0.000258,2]
[311403577,1705077119186,-500.0,0.000258,2]
[311403578,1705077119195,-500.0,0.000258,2]
[311403579,1705077119210,-500.0,0.000258,2]
[311403580,1705077119219,-330.86158795,0.000258,2]
[311403581,1705077119229,-1085.86,0.000258,2]
[311403582,1705077119239,-767.7,0.000258,2]
[311403583,1705077119248,-515.51,0.000258,2]
[311403584,1705077119257,-500.0,0.000258,2]
[311403585,1705077119267,-605.52,0.000258,2]
[311403586,1705077119277,-500.0,0.000258,2]
[311403587,1705077119286,-500.0,0.000258,2]
[311403588,1705077119296,-500.0,0.000258,2]
[311403589,1705077119306,-678.28,0.000258,2]
[311403590,1705077119316,-500.0,0.000258,2]
[311403591,1705077119325,-487.54813733,0.000258,2]
[311403592,1705077119335,-3039.1,0.000258,2]
[311403593,1705077119344,-676.63,0.000258,2]
[311403594,1705077119354,-500.0,0.000258,2]
[311403595,1705077119364,-500.0,0.000258,2]
[311403596,1705077119373,-500.0,0.000258,2]
[311403597,1705077119383,-456.91596325,0.000258,2]
[311403598,1705077119392,-902.95,0.000258,2]
[311403599,1705077119402,-500.0,0.000258,2]
[311403600,1705077119411,-500.0,0.000258,2]
[311403601,1705077119421,-605.4,0.000258,2]
[311403602,1705077119430,-500.0,0.00025802,2]
[311403603,1705077119440,-500.0,0.00025802,2]
[311403604,1705077119449,-153.88,0.00025947,2]
[311403605,1705077119466,-166.53,0.00025988,2]
[311403606,1705077119475,-159.52,0.00026002,2]
[311403607,1705077119484,-157.53,0.0002603,2]
[311403608,1705077119493,-14371.7025146,0.00026036,2]
[311403609,1705077119502,-424.8981359,0.00026036,2]
[311403610,1705077119511,-2264.8082192,0.00026038,2]
[311403611,1705077119520,-625.39,0.00026067,2]
[311403612,1705077119529,-1429.49,0.00026068,2]
[311403613,1705077119539,-9945.1,0.00026068,2]
[311403614,1705077119548,-978.78,0.00026068,2]
[311403615,1705077119559,-1378.24,0.00026068,2]
[311403616,1705077119568,-867.37,0.00026068,2]
[311403617,1705077119578,-576.62,0.00026068,2]
[311403618,1705077119588,-1895.37,0.00026068,2]
[311403619,1705077119597,-741.66,0.00026068,2]
[311403620,1705077119606,-594.56,0.00026068,2]
[311403621,1705077119616,-28063.97,0.00026068,2]
[311403622,1705077119624,-1179.37,0.00026068,2]
[311403623,1705077119633,-1161.83,0.00026068,2]
[311403624,1705077119642,-12384.96761539,0.00026068,2]
[311403625,1705077119660,-1004.80745272,0.00026068,2]
[311403626,1705077119672,-2737.13493189,0.00026068,2]
[311403627,1705077119681,-5129.97142748,0.00026068,2]
[311403628,1705077119693,-270.5502,0.00026068,2]
[311403629,1705077119725,-376.16837252,0.00026068,2]
[311403630,1705077119734,-854.65,0.00026068,2]
[311403631,1705077119744,-650.79774977,0.00026068,2]
[311403632,1705077119755,-138.13225023,0.00026068,2]
[311403633,1705077119765,-500.0,0.00026068,2]
[311403634,1705077119774,-846.93,0.00026068,2]
[311403635,1705077119783,-500.0,0.00026068,2]
[311403636,1705077119792,-2347.67,0.00026068,2]
[311403637,1705077119802,-944.74,0.00026068,2]
[311403638,1705077119811,-556.66,0.00026068,2]
[311403639,1705077119819,-915.17,0.00026068,2]
[311403640,1705077119828,-801.65,0.00026068,2]
[311403641,1705077119838,-7251.06019287,0.00026068,2]
[311403642,1705077119849,-343.594502,0.00026068,2]
[311403643,1705077119860,-1228.327,0.00026068,2]
[311403644,1705077120117,500.0,0.00022407,2]
[311403645,1705077120784,-500.0,0.00022505,2]
[311403646,1705077120794,-22.09894833,0.00022506,2]
[311403647,1705077120804,-477.90105167,0.00022506,2]
[311403648,1705077120815,-500.0,0.0002251,2]
[311403649,1705077120825,-500.0,0.00022511,2]
[311403650,1705077120834,-500.0,0.00022511,2]
[311403651,1705077120843,-611.12,0.00022512,2]
[311403652,1705077120852,-525.35,0.00022512,2]
[311403653,1705077120862,-481.87091553,0.00022779,2]
[311403654,1705077120872,-500.0,0.00022784,2]
[311403655,1705077120881,-284.53301823,0.00022825,6]
[311403656,1705077120891,-1991.88873784,0.000229,2]
[311403657,1705077120901,-500.0,0.00023058,2]
[311403658,1705077120910,-281.92226876,0.00023332,2]
[311403659,1705077120920,-579.11,0.00023605,2]
[311403660,1705077120931,-579.11,0.00023879,2]
[311403661,1705077120942,-579.11,0.00024153,2]
[311403662,1705077120955,-579.11,0.00024427,2]
[311403663,1705077120966,-579.11,0.00024701,2]
[311403664,1705077120975,-579.11,0.00024975,2]
[311403665,1705077120985,-579.11,0.00025249,2]
[311403666,1705077120995,-2493.91830513,0.00026068,2]
[311403667,1705077121006,-1188.34,0.00026068,2]
[311403668,1705077121015,-1285.67,0.00026068,2]
[311403669,1705077121024,-520.06,0.00026068,2]
[311403670,1705077121034,-1592.48,0.00026068,2]
[311403671,1705077121045,-575.88,0.00026068,2]
[311403672,1705077121054,-1869.56,0.00026068,2]
[311403673,1705077121064,-1025.29,0.00026068,2]
[311403674,1705077121074,-765.07,0.00026068,2]
[311403675,1705077121084,-1932.17,0.00026068,2]
[311403676,1705077121093,-516.60461048,0.00026068,2]
[311403677,1705077121103,-825.06,0.00026068,2]
[311403678,1705077121113,-1309.88,0.00026068,2]
[311403679,1705077121123,-500.0,0.0002607,2]
[311403680,1705077121132,-1331.39,0.0002607,2]
[311403681,1705077121142,-1572.80109234,0.0002607,2]
[311403682,1705077121337,-500.0,0.00022505,2]
[311403683,1705077121347,-150.99,0.00022512,2]
[311403684,1705077121357,-632.67,0.0002278,2]
[311403685,1705077121367,-500.0,0.00022785,2]
[311403686,1705077121377,-579.11,0.00025523,2]
[311403687,1705077121386,-579.11,0.00025797,2]
[311403688,1705077121396,-28.26890766,0.0002607,2]
[311403689,1705077121405,-1448.76,0.0002607,5]
[311403690,1705077121415,-553.23,0.0002607,2]
[311403691,1705077121425,-6027.14,0.0002607,2]
[311403692,1705077121434,-8057.22,0.0002607,2]
[311403693,1705077121444,-2024.92,0.0002607,2]
[311403694,1705077121454,-839.27,0.0002607,2]
[311403695,1705077121464,-1398.26,0.0002607,2]
[311403696,1705077121473,-4395.36,0.0002607,2]
[311403697,1705077121482,-791.14,0.0002607,2]
[311403698,1705077121491,-976.62,0.00026071,2]
[311403699,1705077121500,-937.67,0.00026071,2]
[311403700,1705077121510,-500.0,0.00026071,2]
[311403701,1705077121519,-500.0,0.00026071,2]
[311403702,1705077121528,-500.0,0.00026071,2]
[311403703,1705077121538,-500.0,0.00026071,2]
[311403704,1705077121547,-500.0,0.00026071,2]
[311403705,1705077121557,-272.82801775,0.00026071,2]
[311403706,1705077121566,-500.0,0.00026071,2]
[311403707,1705077121575,-500.0,0.00026071,2]
[311403708,1705077121585,-500.0,0.00026071,2]
[311403709,1705077121595,-1107.53,0.00026071,2]
[311403710,1705077121605,-608.63,0.00026071,2]
[311403711,1705077121614,-565.8,0.00026071,2]
[311403712,1705077121623,-500.0,0.00026071,2]
[311403713,1705077121633,-523.56,0.00026071,2]
[311403714,1705077121642,-594.07,0.00026071,2]
[311403715,1705077121652,-1120.5,0.00026071,2]
[311403716,1705077121662,-571.6,0.00026071,2]
[311403717,1705077121672,-500.0,0.00026071,2]
[311403718,1705077121681,-500.0,0.00026071,2]
[311403719,1705077121690,-500.0,0.00026071,2]
[311403720,1705077121701,-1474.92,0.00026071,2]
[311403721,1705077121712,-4177.28,0.00026071,2]
[311403722,1705077121721,-1872.87,0.00026071,2]
[311403723,1705077121730,-460.48269674,0.00026071,2]
[311403724,1705077121740,-10644.17,0.00026071,2]
[311403725,1705077121749,-1357.01,0.00026071,2]
[311403726,1705077121759,-500.0,0.00026071,2]
[311403727,1705077121769,-150.0,0.00026071,2]
[311403728,1705077121778,-500.0,0.00026071,2]
[311403729,1705077121787,-4961.7,0.00026071,2]
[311403730,1705077121797,-933.63,0.00026071,2]
[311403731,1705077121805,-500.0,0.00026071,2]
[311403732,1705077121814,-636.31,0.00026071,2]
[311403733,1705077121824,-436.49800374,0.00026071,2]
[311403734,1705077121834,-1195.27,0.00026071,2]
[311403735,1705077121843,-1808.5,0.00026071,2]
[311403736,1705077121853,-1852.8,0.00026071,2]
[311403737,1705077121862,-3071.92,0.00026071,2]
[311403738,1705077121871,-2545.58,0.00026071,2]
[311403739,1705077121881,-500.0,0.00026071,2]
[311403740,1705077121890,-500.0,0.00026071,2]
[311403741,1705077121900,-2126.07,0.00026071,2]
[311403742,1705077121909,-1558.28,0.00026071,2]
[311403743,1705077121918,-3767.3,0.00026071,2]
[311403744,1705077121927,-1845.89,0.00026071,2]
[311403745,1705077121937,-669.67,0.00026071,2]
[311403746,1705077121948,-2228.6,0.00026071,2]
[311403747,1705077121958,-500.0,0.00026071,2]
[311403748,1705077121967,-846.0,0.00026071,2]
[311403749,1705077121978,-2416.09,0.00026071,2]
[311403750,1705077121987,-13698.75,0.00026071,2]
[311403751,1705077121997,-1205.25,0.00026071,2]
[311403752,1705077122006,-3731.97,0.00026071,2]
[311403753,1705077122015,-492.65987254,0.00026071,2]
[311403754,1705077122024,-812.57,0.00026071,2]
[311403755,1705077122034,-500.0,0.00026071,2]
[311403756,1705077122043,-2269.52,0.00026071,2]
[311403757,1705077122054,-500.0,0.00026071,2]
[311403758,1705077122068,-1615.37,0.00026071,2]
[311403759,1705077122077,-500.0,0.00026071,2]
[311403760,1705077122086,-946.07,0.00026071,2]
[311403761,1705077122096,-500.0,0.00026071,2]
[311403762,1705077122106,-636.34,0.00026071,2]
[311403763,1705077122116,-197.68139172,0.00026071,2]
[311403764,1705077122125,-656.56,0.00026071,2]
[311403765,1705077122134,-579.11,0.00026071,2]
[311403766,1705077122144,-497.3,0.00026072,2]
[311403767,1705077122153,-600.96,0.00026072,2]
[311403768,1705077122162,-500.0,0.00026072,2]
[311403769,1705077122171,-500.0,0.00026072,2]
[311403770,1705077122180,-500.0,0.00026072,2]
[311403771,1705077122189,-239.10909949,0.00026072,2]
[311403772,1705077122199,-571.62,0.00026072,2]
[311403773,1705077122209,-500.0,0.00026072,2]
[311403774,1705077122219,-500.0,0.00026072,2]
[311403775,1705077122229,-1417.94,0.00026072,2]
[311403776,1705077122239,-500.0,0.00026072,2]
[311403777,1705077122248,-965.53,0.00026072,2]
[311403778,1705077122259,-2036.95,0.00026072,2]
[311403779,1705077122268,-401.99316247,0.00026072,2]
[311403780,1705077122277,-500.0,0.00026072,2]
[311403781,1705077122287,-500.0,0.00026072,2]
[311403782,1705077122297,-500.0,0.00026072,2]
[311403783,1705077122306,-594.21,0.00026072,2]
[311403784,1705077122315,-683.21,0.00026072,2]
[311403785,1705077122325,-565.97,0.00026072,2]
[311403786,1705077122335,-500.0,0.00026072,2]
[311403787,1705077122346,-511.84,0.00026072,2]
[311403788,1705077122356,-1545.91,0.00026072,2]
[311403789,1705077122365,-1125.76,0.00026072,2]
[311403790,1705077122374,-806.95,0.00026072,2]
[311403791,1705077122383,-1118.05,0.00026072,2]
[311403792,1705077122393,-806.37,0.00026072,2]
[311403793,1705077122403,-4705.31,0.00026072,2]
[311403794,1705077122414,-4838.78,0.00026072,2]
[311403795,1705077122424,-973.61,0.00026072,2]
[311403796,1705077122434,-500.0,0.00026072,2]
[311403797,1705077122443,-3717.14,0.00026072,2]
[311403798,1705077122453,-964.46,0.00026072,2]
[311403799,1705077122463,-500.0,0.00026072,2]
[311403800,1705077122472,-500.0,0.00026072,2]
[311403801,1705077122481,-500.0,0.00026072,2]
[311403802,1705077122490,-628.62,0.00026072,2]
[311403803,1705077122502,-508.58,0.00026072,2]
[311403804,1705077122511,-1093.02,0.00026072,2]
[311403805,1705077122521,-2444.08,0.00026072,2]
[311403806,1705077122531,-1131.66,0.00026072,2]
[311403807,1705077122542,-1941.71,0.00026072,2]
[311403808,1705077122552,-829.37,0.00026072,2]
[311403809,1705077122561,-923.95,0.00026072,2]
[311403810,1705077122570,-500.0,0.00026072,2]
[311403811,1705077122581,-693.03,0.00026072,2]
[311403812,1705077122590,-2777.7,0.00026072,2]
[311403813,1705077122599,-546.11,0.00026072,2]
[311403814,1705077122609,-1599.45,0.00026072,2]
[311403815,1705077122619,-500.0,0.00026072,2]
[311403816,1705077122628,-533.41,0.00026072,2]
[311403817,1705077122639,-500.0,0.00026072,2]
[311403818,1705077122650,-666.05,0.00026072,2]
[311403819,1705077122659,-775.82,0.00026072,2]
[311403820,1705077122668,-1275.61,0.00026072,2]
[311403821,1705077122678,-500.0,0.00026072,2]
[311403822,1705077122687,-723.72,0.00026072,2]
[311403823,1705077122695,-1101.03,0.00026072,2]
[311403824,1705077122706,-445.45559718,0.00026072,2]
[311403825,1705077122715,-2377.81,0.00026072,2]
[311403826,1705077122726,-1960.6,0.00026072,2]
[311403827,1705077122734,-612.39,0.00026072,2]
[311403828,1705077122743,-365.54667297,0.00026072,2]
[311403829,1705077122752,-500.0,0.00026072,2]
[311403830,1705077122761,-4932.76,0.00026072,2]
[311403831,1705077122769,-555.03,0.00026072,2]
[311403832,1705077122779,-2035.38,0.00026072,2]
[311403833,1705077122788,-470.88219551,0.00026072,2]
[311403834,1705077122798,-595.74,0.00026072,2]
[311403835,1705077122807,-500.0,0.00026072,2]
[311403836,1705077122817,-1056.92,0.00026072,2]
[311403837,1705077122826,-541.9,0.00026072,5]
[311403838,1705077122835,-500.0,0.00026072,2]
[311403839,1705077122844,-500.0,0.00026073,2]
[311403840,1705077122853,-500.0,0.00026073,2]
[311403841,1705077122862,-519.46,0.00026073,2]
[311403842,1705077122871,-516.68,0.00026073,2]
[311403843,1705077122880,-1080.77,0.00026073,2]
[311403844,1705077122889,-710.97,0.00026073,2]
[311403845,1705077122899,-1121.79,0.00026073,2]
[311403846,1705077122908,-500.0,0.00026073,2]
[311403847,1705077122917,-500.0,0.00026073,2]
[311403848,1705077122926,-625.58,0.00026073,2]
[311403849,1705077122939,-500.0,0.00026073,2]
[311403850,1705077122948,-500.0,0.00026073,2]
[311403851,1705077122960,-500.0,0.00026073,2]
[311403852,1705077122969,-616.43,0.00026073,2]
[311403853,1705077122979,-719.05,0.00026073,2]
[311403854,1705077122989,-500.0,0.00026073,2]
[311403855,1705077122999,-604.24,0.00026073,2]
[311403856,1705077123008,-790.24,0.00026073,2]
[311403857,1705077123019,-700.63,0.00026073,2]
[311403858,1705077123029,-500.0,0.00026073,2]
[311403859,1705077123038,-1719.73,0.00026073,2]
[311403860,1705077123049,-986.0,0.00026073,2]
[311403861,1705077123058,-711.04,0.00026073,2]
[311403862,1705077123068,-506.08,0.00026073,2]
[311403863,1705077123077,-1746.57,0.00026073,2]
[311403864,1705077123088,-1020.11,0.00026073,2]
[311403865,1705077123098,-777.31,0.00026073,2]
[311403866,1705077123107,-511.02,0.00026073,2]
[311403867,1705077123116,-2304.2,0.00026073,2]
[311403868,1705077123126,-500.0,0.00026073,2]
[311403869,1705077123135,-2513.79,0.00026073,2]
[311403870,1705077123144,-1000.0,0.00026073,2]
[311403871,1705077123154,-150.0,0.00026073,2]
[311403872,1705077123164,-708.84,0.00026073,2]
[311403873,1705077123173,-500.0,0.00026074,2]
[311403874,1705077123183,-741.19,0.00026074,2]
[311403875,1705077123192,-666.1,0.00026074,2]
[311403876,1705077123201,-500.0,0.00026074,2]
[311403877,1705077123213,-500.0,0.00026074,2]
[311403878,1705077123222,-290.78962945,0.00026074,2]
[311403879,1705077123232,-500.0,0.00026074,2]
[311403880,1705077123242,-671.18,0.00026074,2]
[311403881,1705077123251,-500.0,0.00026074,2]
[311403882,1705077123261,-161.06010209,0.00026074,2]
[311403883,1705077123270,-599.35,0.00026074,2]
[311403884,1705077123279,-500.0,0.00026074,2]
[311403885,1705077123292,-500.0,0.00026074,2]
[311403886,1705077123302,-500.0,0.00026074,2]
[311403887,1705077123311,-1194.85,0.00026074,2]
[311403888,1705077123321,-500.0,0.00026074,2]
[311403889,1705077123330,-835.11,0.00026074,2]
[311403890,1705077123340,-500.0,0.00026074,2]
[311403891,1705077123350,-500.0,0.00026074,2]
[311403892,1705077123359,-910.05,0.00026074,2]
[311403893,1705077123368,-500.0,0.00026074,2]
[311403894,1705077123378,-772.68,0.00026074,2]
[311403895,1705077123388,-500.0,0.00026074,2]
[311403896,1705077123397,-758.57,0.00026074,2]
[311403897,1705077123407,-500.0,0.00026074,2]
[311403898,1705077123417,-747.06,0.00026074,2]
[311403899,1705077123426,-291.68437313,0.00026074,2]
[311403900,1705077123436,-500.0,0.00026074,2]
[311403901,1705077123445,-500.0,0.00026074,2]
[311403902,1705077123454,-500.0,0.00026074,2]
[311403903,1705077123466,-618.55803955,0.00026074,2]
[311403904,1705077123475,-1049.62,0.00026074,2]
[311403905,1705077123485,-500.0,0.00026074,2]
[311403906,1705077123494,-500.0,0.00026074,2]
[311403907,1705077123504,-500.0,0.00026074,2]
[311403908,1705077123513,-256.51795178,0.00026074,2]
[311403909,1705077123523,-500.0,0.00026074,2]
[311403910,1705077123533,-417.55469013,0.00026074,2]
[311403911,1705077123542,-500.0,0.00026074,2]
[311403912,1705077123552,-1085.86,0.00026074,2]
[311403913,1705077123561,-767.7,0.00026074,2]
[311403914,1705077123571,-515.51,0.00026074,2]
[311403915,1705077123580,-500.0,0.00026074,2]
[311403916,1705077123590,-500.0,0.00026074,2]
[311403917,1705077123599,-319.49106544,0.00026074,2]
[311403918,1705077123608,-500.0,0.00026074,2]
[311403919,1705077123618,-678.28,0.00026074,2]
[311403920,1705077123627,-500.0,0.00026074,2]
[311403921,1705077123639,-3039.1,0.00026074,2]
[311403922,1705077123648,-676.63,0.00026074,2]